fUSD/lending_fUSD_20240428
["ID","MTS","AMOUNT","RATE_DAILY","PERIOD"]
[62011,1714333900482,-500.0,0.00013698,2]
[62013,1714333900501,-151.274996,0.00013698,2]
[62015,1714333900520,-500.0,0.00013698,2]
[62017,1714333900540,-202.967152,0.00013698,2]
[62019,1714333900560,-1568.12,0.00013698,2]
[62021,1714333900578,-151.0,0.00013698,2]
[62023,1714333900597,-500.0,0.00013698,2]
[62025,1714333900615,-820.48,0.00013698,2]
[62027,1714333900635,-500.0,0.00013698,2]
[62028,1714333900645,-500.0,0.00013698,2]
[62029,1714333900654,-500.0,0.00013698,2]
[62031,1714333900672,-500.0,0.00013698,2]
[62033,1714333900691,-614.32,0.00013698,2]
[62035,1714333900710,-338.671298,0.00013698,2]
[62037,1714333900730,-1549.96,0.00013698,2]
[62039,1714333900750,-275.027791,0.00013698,2]
[62041,1714333900769,-686.14,0.00013698,2]
[62042,1714333900778,-500.0,0.00013698,2]
[62043,1714333900787,-500.0,0.00013698,2]
[62045,1714333900805,-175.829731,0.00013698,2]
[62046,1714333900815,-1200.84,0.00013698,2]
[62047,1714333900825,-2087.69,0.00013698,2]
[62049,1714333900843,-736.19,0.00013698,2]
[62051,1714333900862,-1033.91,0.00013698,2]
[62053,1714333900880,-500.0,0.00013698,2]
[62055,1714333900900,-507.87,0.00013698,2]
[62057,1714333900919,-1394.6,0.00013698,2]
[62059,1714333900940,-3293.48,0.00013698,2]
[62061,1714333900959,-1383.26,0.00013698,2]
[62063,1714333900978,-1038.55,0.00013698,2]
[62065,1714333900998,-2363.73,0.00013698,2]
[62067,1714333901017,-1482.37,0.00013698,2]
[62069,1714333901036,-635.98,0.00013698,2]
[62071,1714333901059,-1107.0,0.00013698,2]
[62073,1714333901079,-500.0,0.00013698,2]
[62075,1714333901098,-1887.52,0.00013698,2]
[62077,1714333901119,-500.0,0.00013698,2]
[62079,1714333901138,-500.0,0.00013698,2]
[62081,1714333901157,-500.0,0.00013698,2]
[62083,1714333901177,-2191.19,0.00013698,2]
[62085,1714333901196,-2890.81,0.00013698,2]
[62087,1714333901215,-500.0,0.00013698,2]
[62089,1714333901234,-1377.83,0.00013698,2]
[62091,1714333901252,-500.0,0.00013698,2]
[62093,1714333901271,-814.52,0.00013698,2]
[62095,1714333901290,-500.0,0.00013698,2]
[62097,1714333901308,-500.0,0.00013698,2]
[62099,1714333901327,-621.4,0.00013698,2]
[62101,1714333901346,-500.0,0.00013698,2]
[62103,1714333901365,-1278.3,0.00013698,2]
[62105,1714333901383,-1146.85,0.00013698,2]
[62107,1714333901402,-500.0,0.00013698,2]
[62109,1714333901421,-3171.22,0.00013698,2]
[62111,1714333901441,-2674.38,0.00013698,2]
[62113,1714333901460,-500.0,0.00013698,2]
[62115,1714333901479,-856.24,0.00013698,2]
[62116,1714333901489,-500.0,0.00013698,2]
[62117,1714333901498,-203.81,0.00013698,2]
[62118,1714333901507,-500.0,0.00013698,2]
[62119,1714333901517,-352.98,0.00013698,2]
[62120,1714333901527,-500.0,0.00013698,2]
[62121,1714333901537,-500.0,0.00013698,2]
[62122,1714333901546,-1121.09,0.00013698,2]
[62123,1714333901556,-978.42,0.00013698,2]
[62124,1714333901566,-657.57,0.00013698,2]
[62125,1714333901576,-500.0,0.00013698,2]
[62126,1714333901586,-500.0,0.00013698,2]
[62127,1714333901596,-8320.09,0.00013698,2]
[62128,1714333901605,-908.28,0.00013698,2]
[62129,1714333901615,-532.07,0.00013698,2]
[62130,1714333901625,-500.0,0.00013698,2]
[62131,1714333901635,-611.65,0.00013698,2]
[62132,1714333901644,-509.22,0.00013698,2]
[62133,1714333901654,-500.0,0.00013698,2]
[62134,1714333901663,-647.31,0.00013698,2]
[62135,1714333901673,-500.0,0.00013698,2]
[62136,1714333901682,-914.72,0.00013698,2]
[62137,1714333901692,-500.0,0.00013698,2]
[62138,1714333901702,-500.0,0.00013698,2]
[62139,1714333901713,-3853.58,0.00013698,2]
[62140,1714333901723,-942.92,0.00013698,2]
[62141,1714333901733,-673.74,0.00013698,2]
[62142,1714333901744,-500.0,0.00013698,2]
[62143,1714333901753,-705.71,0.00013698,2]
[62144,1714333901762,-200.0,0.00013699,2]
[62145,1714333901772,-250.0,0.00013699,2]
[62146,1714333901782,-500.0,0.00013699,2]
[62147,1714333901792,-200.0,0.00013699,2]
[62148,1714333901802,-2305.04,0.00013699,2]
[62149,1714333901811,-2751.0,0.00013699,2]
[62150,1714333901821,-644.85,0.000137,2]
[62151,1714333901831,-644.85,0.000137,2]
[62152,1714333901841,-644.85,0.000137,2]
[62153,1714333901850,-644.85,0.000137,2]
[62154,1714333901860,-4904.48969558,0.00013723,2]
[62155,1714333901869,-200.0,0.00013789,2]
[62156,1714333901878,-500.0,0.00013789,2]
[62157,1714333901888,-200.0,0.00013789,2]
[62158,1714333901898,-177.93,0.00013972,2]
[62159,1714333901907,-633.54,0.00013972,2]
[62160,1714333901917,-500.0,0.00013972,2]
[62161,1714333901927,-324.1,0.00013972,2]
[62162,1714333901937,-500.0,0.00013972,2]
[62163,1714333901946,-500.0,0.00013972,2]
[62164,1714333901956,-417.72,0.00013972,2]
[62165,1714333901965,-500.0,0.00013972,2]
[62166,1714333901976,-500.0,0.00013972,2]
[62167,1714333901985,-500.0,0.00013972,2]
[62168,1714333901995,-496.26324639,0.00013972,2]
[62169,1714333902004,-500.0,0.00013972,2]
[62170,1714333902014,-500.0,0.00013972,2]
[62171,1714333902023,-500.0,0.00013972,2]
[62172,1714333902033,-500.0,0.00013972,2]
[62173,1714333902046,-500.0,0.00013972,2]
[62174,1714333902056,-500.0,0.00013972,2]
[62175,1714333902067,-500.0,0.00013972,2]
[62177,1714333902089,-360.13,0.00013972,2]
[62178,1714333902100,-500.0,0.00013972,2]
[62179,1714333902109,-500.0,0.00013972,2]
[62181,1714333902130,-500.0,0.00013972,2]
[62183,1714333902149,-500.0,0.00013972,2]
[62185,1714333902168,-500.0,0.00013972,2]
[62187,1714333902188,-500.0,0.00013972,2]
[62189,1714333902208,-500.0,0.00013972,2]
[62191,1714333902227,-754.87,0.00013972,2]
[62193,1714333902246,-220.93,0.00013972,2]
[62194,1714333902256,-356.1,0.00013972,2]
[62195,1714333902266,-512.94,0.00013972,2]
[62197,1714333902285,-500.0,0.00013972,2]
[62199,1714333902303,-500.0,0.00013972,2]
[62201,1714333902322,-580.36,0.00013972,2]
[62203,1714333902342,-1209.6,0.00013972,2]
[62205,1714333902362,-500.0,0.00013972,2]
[62207,1714333902381,-500.0,0.00013972,2]
[62209,1714333902400,-500.0,0.00013972,2]
[62211,1714333902420,-718.62,0.00013972,2]
[62213,1714333902439,-749.09,0.00013972,2]
[62214,1714333902449,-500.0,0.00013972,2]
[62215,1714333902459,-500.0,0.00013972,2]
[62216,1714333902468,-500.0,0.00013972,2]
[62217,1714333902478,-500.0,0.00013972,2]
[62218,1714333902488,-651.61,0.00013972,2]
[62219,1714333902498,-199.73,0.00013972,2]
[62220,1714333902508,-596.5,0.00013972,2]
[62221,1714333902517,-500.0,0.00013972,2]
[62222,1714333902527,-177.11,0.00013972,2]
[62223,1714333902537,-509.59,0.00013972,2]
[62224,1714333902546,-500.0,0.00013972,2]
[62225,1714333902556,-817.82,0.00013972,2]
[62226,1714333902565,-360.15293048,0.00013972,2]
[62227,1714333902575,-500.0,0.00013972,2]
[62229,1714333902595,-500.0,0.00013972,2]
[62230,1714333902605,-500.0,0.00013972,2]
[62231,1714333902615,-784.15,0.00013972,2]
[62232,1714333902624,-980.94,0.00013972,2]
[62233,1714333902635,-732.51,0.00013972,2]
[62235,1714333902656,-683.63,0.00013972,2]
[62237,1714333902676,-500.0,0.00013972,2]
[62239,1714333902696,-286.02,0.00013972,2]
[62241,1714333902716,-500.0,0.00013972,2]
[62242,1714333902726,-500.0,0.00013972,2]
[62243,1714333902736,-500.0,0.00013972,2]
[62244,1714333902745,-578.05,0.00013972,2]
[62245,1714333902755,-913.73,0.00013972,2]
[62246,1714333902764,-500.0,0.00013972,2]
[62247,1714333902774,-500.0,0.00013972,2]
[62248,1714333902784,-500.0,0.00013972,2]
[62249,1714333902794,-500.0,0.00013972,2]
[62250,1714333902803,-251.24725128,0.00013972,2]
[62251,1714333902814,-500.0,0.00013972,2]
[62252,1714333902824,-500.0,0.00013972,2]
[62253,1714333902834,-651.82,0.00013972,2]
[62254,1714333902843,-500.0,0.00013972,2]
[62255,1714333902853,-970.58,0.00013972,2]
[62256,1714333902863,-500.0,0.00013972,2]
[62257,1714333902872,-634.81,0.00013972,2]
[62258,1714333902882,-1130.44,0.00013972,2]
[62259,1714333902892,-500.0,0.00013972,2]
[62261,1714333902911,-594.1,0.00013972,2]
[62263,1714333902930,-500.0,0.00013972,2]
[62265,1714333902950,-610.07,0.00013972,2]
[62267,1714333902971,-151.0,0.00013972,2]
[62269,1714333902991,-500.0,0.00013972,2]
[62271,1714333903010,-500.0,0.00013972,2]
[62273,1714333903029,-151.0,0.00013972,2]
[62275,1714333903055,-2244.82,0.00013972,2]
[62277,1714333903074,-151.0,0.00013972,2]
[62279,1714333903096,-2221.176941,0.00013972,2]
[62281,1714333903118,-723.810673,0.00013972,2]
[62283,1714333903138,-598.88,0.00013972,2]
[62285,1714333903157,-734.204952,0.00013972,2]
[62287,1714333903177,-7836.77,0.00013972,2]
[62289,1714333903198,-500.0,0.00013972,2]
[62291,1714333903220,-500.0,0.00013972,2]
[62293,1714333903240,-500.0,0.00013972,2]
[62295,1714333903260,-2877.520494,0.00013972,2]
[62297,1714333903280,-163.33068,0.00013972,2]
[62299,1714333903301,-552.44,0.00013972,2]
[62301,1714333903320,-500.0,0.00013972,2]
[62303,1714333903339,-851.63,0.00013972,2]
[62305,1714333903359,-500.0,0.00013972,2]
[62307,1714333903377,-500.0,0.00013972,2]
[62309,1714333903397,-533.296144,0.00013972,2]
[62311,1714333903416,-500.0,0.00013972,2]
[62313,1714333903436,-533.296144,0.00013972,2]
[62315,1714333903456,-500.0,0.00013972,2]
[62317,1714333903476,-500.0,0.00013972,2]
[62319,1714333903495,-2286.464529,0.00013972,2]
[62321,1714333903515,-500.0,0.00013972,2]
[62323,1714333903536,-500.0,0.00013972,2]
[62325,1714333903557,-500.0,0.00013972,2]
[62327,1714333903578,-500.0,0.00013972,2]
[62329,1714333903792,-2793.67,0.00013972,2]
[62331,1714333903812,-1468.32,0.00013972,2]
[62333,1714333903832,-2433.94,0.00013972,2]
[62335,1714333903850,-3274.87,0.00013972,2]
[62337,1714333903869,-1149.81,0.00013972,2]
[62339,1714333903890,-920.14,0.00013972,2]
[62341,1714333903909,-1205.49,0.00013972,2]
[62343,1714333903928,-500.0,0.00013972,2]
[62345,1714333903947,-533.53287777,0.00013972,2]
[62346,1714333903957,-500.0,0.00013972,2]
[62347,1714333903967,-1295.23,0.00013972,2]
[62349,1714333903987,-1568.12,0.00013972,2]
[62351,1714333904006,-1170.929456,0.00013972,2]
[62352,1714333904016,-1020.65,0.00013972,2]
[62353,1714333904025,-500.0,0.00013972,2]
[62354,1714333904034,-500.0,0.00013972,2]
[62355,1714333904048,-820.48,0.00013972,2]
[62356,1714333904057,-500.0,0.00013972,2]
[62357,1714333904067,-500.0,0.00013972,2]
[62358,1714333904076,-500.0,0.00013972,2]
[62359,1714333904087,-500.0,0.00013972,2]
[62360,1714333904096,-642.64,0.00013972,2]
[62361,1714333904107,-1549.96,0.00013972,2]
[62362,1714333904117,-877.73,0.00013972,2]
[62363,1714333904128,-500.0,0.00013972,2]
[62364,1714333904137,-686.14,0.00013972,2]
[62365,1714333904147,-500.0,0.00013972,2]
[62366,1714333904156,-500.0,0.00013972,2]
[62367,1714333904166,-500.0,0.00013972,2]
[62368,1714333904175,-1200.84,0.00013972,2]
[62369,1714333904184,-2087.69,0.00013972,2]
[62370,1714333904194,-736.19,0.00013972,2]
[62371,1714333904204,-1033.91,0.00013972,2]
[62372,1714333904215,-1078.64,0.00013972,2]
[62373,1714333904224,-500.0,0.00013972,2]
[62374,1714333904234,-507.87,0.00013972,2]
[62375,1714333904244,-660.63,0.00013972,2]
[62376,1714333904254,-1394.6,0.00013972,2]
[62377,1714333904263,-3293.48,0.00013972,2]
[62378,1714333904273,-500.0,0.00013972,2]
[62379,1714333904282,-1383.26,0.00013972,2]
[62380,1714333904292,-666.21,0.00013972,2]
[62381,1714333904301,-1038.55,0.00013972,2]
[62383,1714333904321,-2363.73,0.00013972,2]
[62385,1714333904339,-1482.37,0.00013972,2]
[62386,1714333904349,-581.73,0.00013972,2]
[62387,1714333904359,-635.98,0.00013972,2]
[62389,1714333904379,-1107.0,0.00013972,2]
[62391,1714333904399,-500.0,0.00013972,2]
[62393,1714333904418,-1887.52,0.00013972,2]
[62395,1714333904437,-500.0,0.00013972,2]
[62396,1714333904448,-500.0,0.00013972,2]
[62397,1714333904457,-500.0,0.00013972,2]
[62398,1714333904467,-2646.6,0.00013972,2]
[62399,1714333904476,-500.0,0.00013972,2]
[62401,1714333904496,-2191.19,0.00013972,2]
[62402,1714333904506,-2890.81,0.00013972,2]
[62403,1714333904516,-1910.63,0.00013972,2]
[62404,1714333904526,-500.0,0.00013972,2]
[62405,1714333904535,-1435.69,0.00013972,2]
[62406,1714333904545,-1377.83,0.00013972,2]
[62407,1714333904554,-500.0,0.00013972,2]
[62408,1714333904564,-500.0,0.00013972,2]
[62409,1714333904574,-500.0,0.00013972,2]
[62410,1714333904584,-814.52,0.00013972,2]
[62411,1714333904593,-877.24,0.00013972,2]
[62412,1714333904603,-500.0,0.00013972,2]
[62413,1714333904612,-2530.69,0.00013972,2]
[62414,1714333904622,-500.0,0.00013972,2]
[62415,1714333904631,-500.0,0.00013972,2]
[62416,1714333904641,-621.4,0.00013972,2]
[62417,1714333904652,-500.0,0.00013972,2]
[62418,1714333904662,-500.0,0.00013972,2]
[62419,1714333904671,-2915.48,0.00013972,2]
[62420,1714333904680,-1278.3,0.00013972,2]
[62421,1714333904690,-500.0,0.00013972,2]
[62422,1714333904700,-1146.85,0.00013972,2]
[62423,1714333904710,-500.0,0.00013972,2]
[62424,1714333904721,-500.0,0.00013972,2]
[62425,1714333904731,-763.84,0.00013972,2]
[62426,1714333904741,-3171.22,0.00013972,2]
[62427,1714333904751,-630.5,0.00013972,2]
[62429,1714333904771,-2017.39,0.00013972,2]
[62431,1714333904791,-534.56,0.00013972,2]
[62433,1714333904810,-500.0,0.00013972,2]
[62435,1714333904829,-500.0,0.00013972,2]
[62437,1714333904848,-1121.09,0.00013972,2]
[62439,1714333904867,-657.57,0.00013972,2]
[62441,1714333904887,-500.0,0.00013972,2]
[62443,1714333904906,-908.28,0.00013972,2]
[62445,1714333904927,-500.0,0.00013972,2]
[62447,1714333904948,-500.0,0.00013972,2]
[62449,1714333904967,-500.0,0.00013972,2]
[62451,1714333904988,-500.0,0.00013972,2]
[62453,1714333905007,-3853.58,0.00013972,2]
[62455,1714333905027,-673.74,0.00013972,2]
[62457,1714333905055,-530.0,0.00013973,2]
[62458,1714333905065,-380.66,0.00014246,2]
[62459,1714333905075,-462.96,0.00014246,2]
[62460,1714333905087,-500.0,0.00014246,2]
[62461,1714333905096,-254.42,0.00014246,2]
[62462,1714333905106,-348.1,0.00014246,2]
[62463,1714333905115,-500.0,0.00014246,2]
[62464,1714333905126,-500.0,0.00014246,2]
[62465,1714333905136,-500.0,0.00014246,2]
[62466,1714333905145,-500.0,0.00014246,2]
[62467,1714333905155,-500.0,0.00014246,2]
[62468,1714333905165,-500.0,0.00014246,2]
[62469,1714333905175,-500.0,0.00014246,2]
[62470,1714333905185,-500.0,0.00014246,2]
[62471,1714333905195,-500.0,0.00014246,2]
[62473,1714333905214,-500.0,0.00014246,2]
[62475,1714333905235,-500.0,0.00014246,2]
[62477,1714333905255,-500.0,0.00014246,2]
[62479,1714333905274,-500.0,0.00014246,2]
[62480,1714333905283,-704.81,0.00014246,2]
[62481,1714333905292,-500.0,0.00014246,2]
[62482,1714333905302,-806.93,0.00014246,2]
[62483,1714333905313,-500.0,0.00014246,2]
[62485,1714333905332,-500.0,0.00014246,2]
[62487,1714333905352,-500.0,0.00014246,2]
[62489,1714333905371,-500.0,0.00014246,2]
[62491,1714333905390,-580.36,0.00014246,2]
[62493,1714333905410,-1209.6,0.00014246,2]
[62494,1714333905420,-500.0,0.00014246,2]
[62495,1714333905430,-180.19,0.00014246,2]
[62496,1714333905441,-500.0,0.00014246,2]
[62497,1714333905450,-500.0,0.00014246,2]
[62498,1714333905460,-500.0,0.00014246,2]
[62499,1714333905471,-500.0,0.00014246,2]
[62500,1714333905480,-500.0,0.00014246,2]
[62501,1714333905491,-718.62,0.00014246,2]
[62502,1714333905501,-500.0,0.00014246,2]
[62503,1714333905511,-749.09,0.00014246,2]
[62504,1714333905521,-500.0,0.00014246,2]
[62505,1714333905530,-500.0,0.00014246,2]
[62507,1714333905549,-244.05,0.00014246,2]
[62509,1714333905568,-596.5,0.00014246,2]
[62511,1714333905588,-177.11,0.00014246,2]
[62513,1714333905608,-500.0,0.00014246,2]
[62515,1714333905627,-500.0,0.00014246,2]
[62517,1714333905647,-500.0,0.00014246,2]
[62519,1714333905666,-980.94,0.00014246,2]
[62521,1714333905685,-151.0,0.00014246,2]
[62523,1714333905704,-732.51,0.00014246,2]
[62525,1714333905724,-683.63,0.00014246,2]
[62527,1714333905744,-500.0,0.00014246,2]
[62529,1714333905763,-500.0,0.00014246,2]
[62531,1714333905783,-172.421329,0.00014246,2]
[62533,1714333905802,-500.0,0.00014246,2]
[62535,1714333905821,-913.73,0.00014246,2]
[62537,1714333905840,-500.0,0.00014246,2]
[62538,1714333905850,-577.32,0.00014246,2]
[62539,1714333905860,-500.0,0.00014246,2]
[62541,1714333905880,-249.29432,0.00014246,2]
[62543,1714333905899,-500.0,0.00014246,2]
[62545,1714333905918,-651.82,0.00014246,2]
[62547,1714333905938,-500.0,0.00014246,2]
[62549,1714333905956,-1130.44,0.00014246,2]
[62551,1714333905976,-500.0,0.00014246,2]
[62552,1714333905985,-594.1,0.00014246,2]
[62553,1714333905995,-500.0,0.00014246,2]
[62555,1714333906014,-500.0,0.00014246,2]
[62557,1714333906032,-802.03,0.00014246,2]
[62559,1714333906056,-500.0,0.00014246,2]
[62561,1714333906075,-500.0,0.00014246,2]
[62563,1714333906096,-2244.82,0.00014246,2]
[62565,1714333906116,-500.0,0.00014246,2]
[62567,1714333906204,-500.0,0.00014246,2]
[62569,1714333906225,-1510.64,0.00014246,2]
[62571,1714333906244,-500.0,0.00014246,2]
[62573,1714333906263,-500.0,0.00014246,2]
[62575,1714333906282,-500.0,0.00014246,2]
[62577,1714333906300,-500.0,0.00014246,2]
[62579,1714333906319,-552.44,0.00014246,2]
[62581,1714333906336,-851.63,0.00014246,2]
[62583,1714333906355,-500.0,0.00014246,2]
[62585,1714333906373,-935.48,0.00014246,2]
[62587,1714333906392,-669.74,0.00014246,2]
[62589,1714333906410,-500.0,0.00014246,2]
[62591,1714333906430,-500.0,0.00014246,2]
[62593,1714333906448,-500.0,0.00014246,2]
[62595,1714333906467,-500.0,0.00014246,2]
[62597,1714333906487,-525.17132523,0.00014246,2]
[62599,1714333906506,-500.0,0.00014246,2]
[62601,1714333906526,-2793.67,0.00014246,2]
[62603,1714333906545,-1468.32,0.00014246,2]
[62605,1714333906564,-2433.94,0.00014246,2]
[62607,1714333906583,-3274.87,0.00014246,2]
[62609,1714333906601,-1149.81,0.00014246,2]
[62611,1714333906620,-920.14,0.00014246,2]
[62613,1714333906639,-1205.49,0.00014246,2]
[62614,1714333906649,-935.36,0.00014246,2]
[62615,1714333906658,-500.0,0.00014246,2]
[62617,1714333906677,-500.0,0.00014246,2]
[62618,1714333906687,-1295.23,0.00014246,2]
[62619,1714333906696,-1568.12,0.00014246,2]
[62621,1714333906715,-1020.65,0.00014246,2]
[62623,1714333906735,-820.48,0.00014246,2]
[62625,1714333906753,-500.0,0.00014246,2]
[62627,1714333906772,-500.0,0.00014246,2]
[62629,1714333906790,-642.64,0.00014246,2]
[62631,1714333906809,-877.73,0.00014246,2]
[62633,1714333906827,-686.14,0.00014246,2]
[62635,1714333906845,-500.0,0.00014246,2]
[62637,1714333906863,-1200.84,0.00014246,2]
[62639,1714333906882,-736.19,0.00014246,2]
[62641,1714333906901,-1078.64,0.00014246,2]
[62643,1714333906920,-507.87,0.00014246,2]
[62645,1714333906938,-1394.6,0.00014246,2]
[62647,1714333906955,-500.0,0.00014246,2]
[62648,1714333906965,-1383.26,0.00014246,2]
[62649,1714333906974,-1038.55,0.00014246,2]
[62651,1714333906994,-666.21,0.00014246,2]
[62653,1714333907012,-500.0,0.00014246,2]
[62655,1714333907031,-581.73,0.00014246,2]
[62657,1714333907054,-519.27,0.00014246,2]
[62658,1714333907063,-802.45,0.00014246,2]
[62659,1714333907073,-1107.0,0.00014246,2]
[62660,1714333907083,-500.0,0.00014246,2]
[62661,1714333907093,-500.0,0.00014246,2]
[62663,1714333907111,-500.0,0.00014246,2]
[62665,1714333907130,-500.0,0.00014246,2]
[62667,1714333907149,-2646.6,0.00014246,2]
[62669,1714333907168,-1312.38,0.00014246,2]
[62671,1714333907188,-2890.81,0.00014246,2]
[62673,1714333907207,-529.13,0.00014246,2]
[62675,1714333907227,-1377.83,0.00014246,2]
[62676,1714333907236,-505.01015772,0.00014246,2]
[62677,1714333907246,-500.0,0.00014246,2]
[62679,1714333907266,-814.52,0.00014246,2]
[62681,1714333907286,-500.0,0.00014246,2]
[62683,1714333907305,-500.0,0.00014246,2]
[62685,1714333907324,-621.4,0.00014246,2]
[62687,1714333907343,-500.0,0.00014246,2]
[62689,1714333907361,-1278.3,0.00014246,2]
[62691,1714333907380,-1146.85,0.00014246,2]
[62693,1714333907399,-500.0,0.00014246,2]
[62695,1714333907418,-3171.22,0.00014246,2]
[62697,1714333907437,-2674.38,0.00014246,2]
[62699,1714333907456,-500.0,0.00014246,2]
[62701,1714333907475,-500.0,0.00014246,2]
[62703,1714333907493,-500.0,0.00014246,2]
[62705,1714333907511,-1121.09,0.00014246,2]
[62707,1714333907531,-657.57,0.00014246,2]
[62709,1714333907550,-500.0,0.00014246,2]
[62711,1714333907568,-908.28,0.00014246,2]
[62713,1714333907588,-532.07,0.00014246,2]
[62715,1714333907606,-500.0,0.00014246,2]
[62717,1714333907624,-914.72,0.00014246,2]
[62719,1714333907643,-647.31,0.00014246,2]
[62721,1714333907662,-3853.58,0.00014246,2]
[62723,1714333907680,-942.92,0.00014246,2]
[62724,1714333907690,-500.0,0.00014246,2]
[62725,1714333907700,-1000.0,0.00014494,2]
[62727,1714333907719,-500.0,0.0001452,2]
[62729,1714333907739,-500.0,0.0001452,2]
[62731,1714333907757,-500.0,0.0001452,2]
[62733,1714333907776,-500.0,0.0001452,2]
[62735,1714333907796,-500.0,0.0001452,2]
[62737,1714333907814,-500.0,0.0001452,2]
[62739,1714333907833,-1063.6,0.0001452,2]
[62741,1714333907852,-1029.24,0.0001452,2]
[62743,1714333907872,-540.5,0.0001452,2]
[62745,1714333907890,-704.81,0.0001452,2]
[62747,1714333907908,-806.93,0.0001452,2]
[62749,1714333907928,-754.87,0.0001452,2]
[62751,1714333907948,-512.94,0.0001452,2]
[62753,1714333907967,-312.07,0.0001452,2]
[62755,1714333907986,-500.0,0.0001452,2]
[62757,1714333908005,-500.0,0.0001452,2]
[62759,1714333908024,-246.52,0.0001452,2]
[62761,1714333908048,-500.0,0.0001452,2]
[62763,1714333908067,-500.0,0.0001452,2]
[62765,1714333908088,-718.62,0.0001452,2]
[62767,1714333908106,-749.09,0.0001452,2]
[62769,1714333908125,-500.0,0.0001452,2]
[62771,1714333908144,-214.331911,0.0001452,2]
[62773,1714333908165,-151.0,0.0001452,2]
[62775,1714333908184,-151.0,0.0001452,2]
[62777,1714333908205,-158.78,0.0001452,2]
[62778,1714333908215,-177.11,0.0001452,2]
[62779,1714333908224,-509.59,0.0001452,2]
[62781,1714333908243,-817.82,0.0001452,2]
[62783,1714333908262,-500.0,0.0001452,2]
[62785,1714333908281,-500.0,0.0001452,2]
[62787,1714333908300,-980.94,0.0001452,2]
[62789,1714333908319,-500.0,0.0001452,2]